Cogmind - Beta 9.2 @@@ ROGUE MODE // 2019.12.16 @ 16:36:03 Player: Clifton Shawgrass Result: Destroyed by S-10 Pest with Light Assault Rifle Performance ------------- Evolutions (0) 0 Regions Visited (1) 200 Robots Destroyed (14) 70 Value Destroyed (410) 410 Prototype IDs (2) 40 Alien Tech Used (0) 0 Bonus (0) 0 TOTAL SCORE: 720 Bonus ------- None Cogmind --------- Core Integrity 0/250 Matter 100/300 Energy 59/100 System Corruption 0% Temperature Cool (0) Movement Walking (120) Location -10/Materials Parts ------- > --- POWER (1) -------- (None) > --- PROPULSION (2) --- Aluminum Leg > --- UTILITY (2) ------ Terrain Scanner Terrain Scan Processor > --- WEAPON (2) ------- Hammer > --- INVENTORY (4) ---- Aluminum Leg Aluminum Leg Wheel Hover Unit Peak State ------------ > --- POWER ------------ Ion Engine > --- PROPULSION ------- Aluminum Leg Aluminum Leg > --- UTILITY ---------- Terrain Scanner Terrain Scan Processor > --- WEAPON ----------- Small Laser Hammer > --- INVENTORY -------- Aluminum Leg Wheel [Rating: 8] Favorites ----------- Power Ion Engine Engine Ion Engine Propulsion Aluminum Leg Leg Aluminum Leg Wheel Wheel Hover Unit Hover Unit Utility Medium Storage Unit Device Tractor Beam Storage Medium Storage Unit Processor Terrain Scan Processor Weapon Assault Rifle Energy Gun Small Laser Energy Cannon Beam Cannon Ballistic Gun Assault Rifle Launcher Grenade Launcher Special Weapon Welding Torch Impact Weapon Hammer Build | -11 -10 ------- Run | Scr Mat Slots Evolved . | . . Power . | . . Propulsion . | . . Utility . | . . Weapon . | . . Parts Attached 37 | 5 32 Power 4 | 1 3 Engine 4 | 1 3 Core . | . . Reactor . | . . Propulsion 9 | 2 7 Treads . | . . Leg 5 | . 5 Wheel 2 | 2 . Hover 2 | . 2 Flight . | . . Utility 10 | . 10 Device 4 | . 4 Storage 5 | . 5 Processor 1 | . 1 Hackware . | . . Protection . | . . Artifact . | . . Weapon 14 | 2 12 Energy Gun 6 | 2 4 Energy Cannon 2 | . 2 Ballistic Gun 2 | . 2 Ballistic Cannon . | . . Launcher 1 | . 1 Special Weapon 1 | . 1 Impact Weapon 2 | . 2 Slashing Weapon . | . . Piercing Weapon . | . . Special Melee Weapon . | . . Unidentified Prototypes . | . . Parts Lost 8 | . 8 Power 2 | . 2 Propulsion 1 | . 1 Utility . | . . Weapon 5 | . 5 Highest Loss Streak 3 | . 3 Average Slot Usage (%) 86 | . 86 Engine 9 | . 9 Leg 14 | . 14 Wheel 9 | . 9 Hover 2 | . 2 Device 7 | . 7 Storage 14 | . 14 Processor 3 | . 3 Energy Gun 10 | . 10 Ballistic Gun 7 | . 7 Launcher 2 | . 2 Special Weapon 1 | . 1 Impact Weapon 1 | . 1 Naked Turns . | . . Heaviest Build 34 | 7 34 Greatest Support 20 | 20 20 Greatest Overweight (x) 3 | . 3 Average Overweight (x) . | . . Largest Inventory Capacity 14 | 4 14 Average Capacity 8 | 4 9 Most Carried 8 | 4 8 Average Carried 3 | 2 3 Final Capacity 10 | 4 10 Final Carried 7 | 3 7 Class Distribution -------------------- 76% | Mutant 23% | Scavenger-Mutant Dominant Class ---------------- Mutant | -10/Materials Resources | -11 -10 ----------- Run | Scr Mat Matter Collected 506 | 250 256 Remotely 70 | . 70 Salvage Created 482 | 45 437 Parts 27 | . 27 Haulers Intercepted . | . . Recyclers Shooed 1 | . 1 Parts Field Recycled . | . . Retrieved Matter . | . . Parts Self-Destructed . | . . Prevented . | . . Kills | -11 -10 ------- Run | Scr Mat Combat Hostiles Destroyed 11 | 1 10 Melee 1 | . 1 Guns 6 | 1 5 Cannons 1 | . 1 AOE 3 | . 3 Classes Destroyed 5 | 1 4 Builder 1 | . 1 Recycler 1 | . 1 Watcher 1 | . 1 Swarmer 1 | . 1 Grunt 10 | 1 9 Best Kill Streak 4 | 1 4 Combat Bots Only 3 | 1 3 Max Kills in Single Turn 1 | 1 1 Gunslinging . | . . Exploded 1 | . 1 Melee 1 | . 1 Uniques/NPCs Destroyed . | . . Combat | -11 -10 -------- Run | Scr Mat Damage Taken 888 | 31 857 Core 259 | . 259 Absorbed by Shields . | . . Core Remaining (%) 100 | 100 . Volleys Fired 63 | 4 59 Largest 2 | 2 2 Hottest 100 | 100 80 Shots Fired 96 | 8 88 Gun 67 | 8 59 Cannon 9 | . 9 Launcher 8 | . 8 Special 12 | . 12 Kinetic 32 | . 32 Thermal 56 | 8 48 Explosive 8 | . 8 Electromagnetic . | . . Robot Hit Streak 8 | 8 5 Robot Miss Streak 4 | . 4 Penetration Max . | . . Secondary Targets 2 | . 2 Max Gunslinging Chain 1 | . 1 Shots Hit Robots 50 | 8 42 Core Hits 22 | 2 20 Critical Hits . | . . Critical Kills . | . . Critical Parts Destroyed . | . . Melee Attacks 2 | . 2 Impact 2 | . 2 Slashing . | . . Piercing . | . . Sneak Attacks . | . . Combat Hostiles . | . . Follow-up Attacks . | . . Damage Inflicted 923 | 98 825 Guns 491 | 98 393 Cannons 106 | . 106 Explosions 307 | . 307 Melee 19 | . 19 Ramming . | . . Kinetic 227 | . 227 Thermal 370 | 98 272 Explosive 307 | . 307 Electromagnetic . | . . Impact 19 | . 19 Slashing . | . . Piercing . | . . Highest Corruption . | . . Average Corruption . | . . Corruption Purged . | . . Overload Shots . | . . Overflow Damage . | . . Projectiles . | . . Explosions . | . . Melee . | . . Knockbacks . | . . Impact . | . . Kinetic . | . . Secondary . | . . Self-Inflicted Damage 48 | . 48 Shots 2 | . 2 Rammed . | . . Targets Rammed . | . . Kicked . | . . Crushed . | . . Highest Temperature 272 | 174 272 Average Temperature 88 | 92 87 Received Heat Transfer 360 | 18 342 Siege Activations . | . . Robots Corrupted . | . . Combat Hostiles . | . . Parts Fried . | . . Impact Corruptions . | . . Robots Melted . | . . Combat Hostiles . | . . Parts Melted 2 | 1 1 Heat Transferred 988 | 296 692 Parts Sabotaged . | . . Parts Stolen . | . . Parts Stripped . | . . Power Chain Reactions . | . . Missiles Intercepted . | . . Alert | -11 -10 ------- Run | Scr Mat Peak Influence 254 | 20 254 Average Influence 106 | 3 119 Maximum Alert Level 1 | . 1 Low Security (%) 89 | 100 88 Level 1 10 | . 11 Level 2 . | . . Level 3 . | . . Level 4 . | . . Level 5 . | . . High Security . | . . Max Security . | . . Squads Dispatched 3 | . 3 Investigation 3 | . 3 Extermination . | . . Reinforcement . | . . Assault . | . . Garrison . | . . Intercept . | . . Construction Impeded . | . . Haulers Reinforced . | . . Stealth | -11 -10 --------- Run | Scr Mat Distress Signals 1 | . 1 Communications Jammed . | . . Distress Signals . | . . Times Spotted 17 | 1 16 Peak Tracking Total 4 | 1 4 Tactical Retreats 1 | . 1 Traps | -11 -10 ------- Run | Scr Mat Traps Triggered 1 | . 1 Indirectly . | . . Trap Hack Attempts . | . . Triggered . | . . Disarmed . | . . Reprogrammed . | . . Reused . | . . Traps Extracted . | . . Installed . | . . Triggered . | . . Machines | -11 -10 ---------- Run | Scr Mat Machines Disabled 2 | . 2 Max in Single Turn 1 | . 1 Machines Sabotaged . | . . Garrisons Compromised . | . . Overloaded Fab Kills . | . . Fab Network Shutdowns . | . . Hacking | -11 -10 --------- Run | Scr Mat Machines Accessed 4 | . 4 Terminals 4 | . 4 Fabricators . | . . Repair Stations . | . . Recycling Units . | . . Scanalyzers . | . . Garrison Access . | . . Total Hacks 18 | . 18 Successful 15 | . 15 Failed 3 | . 3 Catastrophic . | . . Database Lockouts . | . . Manual 1 | . 1 Terminals 18 | . 18 Fabricators . | . . Repair Stations . | . . Recycling Units . | . . Scanalyzers . | . . Garrison Access . | . . Terminal Hacks 15 | . 15 Record 4 | . 4 Prototype ID Bank 1 | . 1 Emergency Access Points 1 | . 1 Alert Level 4 | . 4 Dispatch Records 1 | . 1 Maintenance Status 1 | . 1 Patrol Status 1 | . 1 Hauler Manifests 1 | . 1 Zone Layout 1 | . 1 Fabricator Hacks . | . . Repair Station Hacks . | . . Recycling Unit Hacks . | . . Scanalyzer . | . . Garrison Access Hacks . | . . Unauthorized Hacks . | . . Terminals . | . . Fabricators . | . . Repair Stations . | . . Recycling Units . | . . Scanalyzers . | . . Garrison Access . | . . Data Cores Recovered . | . . Used . | . . Hacking Detections 4 | . 4 Full Trace Events 4 | . 4 Feedback Events . | . . Feedback Blocked . | . . Robot Schematics Acquired . | . . Robots Built . | . . Matter . | . . Time . | . . Total Robot Build Rating . | . . Part Schematics Acquired . | . . Parts Built . | . . Matter . | . . Time . | . . Total Part Build Rating . | . . Parts Repaired . | . . Time . | . . Parts Recycled . | . . Recycled Matter . | . . Retrieved Matter . | . . Retrieved Components . | . . Parts Scanalyzed . | . . Part Schematics Acquired . | . . Parts Damaged . | . . Bothacking | -11 -10 ------------ Run | Scr Mat Used RIF Installer . | . . Robots Hacked . | . . Non-combat . | . . Combat . | . . Robot Hacks Applied . | . . Relay Couplers Released . | . . Robots Rewired . | . . Allies Hacked . | . . Hacks Repelled . | . . Allies | -11 -10 -------- Run | Scr Mat Total Allies . | . . Largest Group . | . . Highest-Rated Group . | . . Highest-Rated Ally . | . . Total Orders . | . . Ally Attacks . | . . Total Damage . | . . Kills . | . . Allies Corrupted . | . . Allies Melted . | . . Intel | -11 -10 ------- Run | Scr Mat Robot Analysis Total . | . . Derelict Logs Recovered . | . . Drone Launches . | . . Drone Recoveries . | . . Exploration | -11 -10 ------------- Run | Scr Mat Turns Passed 654 | 76 578 Spaces Moved 414 | 74 340 Core 27 | 27 . Treads . | . . Legs 129 | . 129 Wheels 193 | 47 146 Hover 65 | . 65 Flight . | . . Fastest Speed 50 | 50 56 Average Speed 93 | 69 99 Slowest Speed 210 | 80 210 Overloaded Moves . | . . Propulsion Burnouts . | . . Robots Hopped . | . . Cave-ins Triggered . | . . Exploration Rate (%) 23 | 6 41 Regions Visited 1 Branch Regions . Pre-discovered Areas . | . . Known Exits Taken . | . . Unknown Exits Taken 1 | 1 . Scrap Searched . | . . Spaces Dug . | . . Terrain Destroyed 29 | . 29 Melee . | . . Projectile . | . . AOE 29 | . 29 Actions | -11 -10 --------- Run | Scr Mat Total 578 | 90 488 Wait 22 | . 22 Move 413 | 73 340 Hop . | . . Pick Up 20 | 8 12 Fast Attach 12 | . 12 Attach 17 | 5 12 Detach 9 | . 9 Swap 8 | . 8 Drop 12 | . 12 Fire 63 | 4 59 Melee 2 | . 2 Ram . | . . Kick . | . . Crush . | . . Escape Stasis . | . . Rewire . | . . Trap . | . . Miscellaneous . | . . Route ------- -11/Scrapyard -10/Materials (discovered 1 exit: [*Mat]) History --------- Turn | Location | Event 2 | -11/Scrapyard | Met Revision 17 52 | -11/Scrapyard | Discovered new exit (range 8) 77 | -11/Scrapyard | Entered Materials 152 | -10/Materials | Discovered new exit (range 16) 229 | -10/Materials | Lost 3 parts (1p2w) 343 | -10/Materials | Build established: Mutant 391 | -10/Materials | Core integrity fell below 50% 632 | -10/Materials | Core integrity fell below 20% 655 | -10/Materials | Destroyed by S-10 Pest with Light Assault Rifle Last Messages --------------- Downloaded coordinate data. 00563_ K-01 Serf collects debris. 00586_ Acquired Hammer. Bump into an enemy to attack with the active melee weapon. Even while active, melee weapons do not fire together with ranged weapons in the same volley. 00594_ Acquired Hover Unit. 00605_ Dropped Sml. Laser. 00606_ Acquired Hammer. Only a single melee weapon may be active at a time, Hammer automatically deactivated. (Secondary inactive melee weapons have a chance to conduct follow-up attacks, see the manual.) 00609_ Dropped Hammer. 00609_ Acquired Sml. Laser. 00629_ Ion Engine destroyed. 00629_ Sml. Laser destroyed. 00633_ S-10 Pest destroyed. 00643_ R-06 Scavenger collects Ion Engine. 00649_ Hover Unit destroyed. [Achievement: First Step to Greatness] Map ----- +----------------------------------------------------+ | ?????????????# """ """ ##????? | | ??????###??#?# """ """ ####??? | | ???????##?#??# """ """ # ##?? | | ????##?#??##?# # #??? | | ????#???#?#??######+######## #?#? | | ##????? ?????### #?#? | | #?? ?? ###?##?# ##?? | | ####? ###?#####^^" ^ ! #?#? | | # # ? ######### "T !!|##?? | | #? ## ## "" !! #??? | | # # ? ## //=# = #??? | | # ##?? ## =# ##?? | | #? ? ? ?# / # ###+####+##?#? | | #????? ##?# # # ###?? | | ########### + # """"" #???? | | # # # # """"" #???# | | + !!! # # # """"" #???? | | # !! # # # #?#?? | | # """ ! # # # """"" ####? | | # """ # # # """"" ###?# | | # """ # # # """"" #???? | | # ####### # #?#?? | | #???### #####s######?? | | ##+ #######??#??# #?# #?? | | # ####???##### #?# #?? | | ##############* #?# @ #?? | | % #?# #?? | | % ### #?? | | # #?? | | < # #?? | | # #?# | | ### #############+#### #?? | | ??# #?????????# #####+####?? | | ??# #????#????# """ ## #??? | | ??# #????????## """ ## #??? | | ??# #?????????# """ + #??? | | ??# #???????#?# ## T #??? | | ??# #?????????# ## #??? | | ??# #?????????######### #??? | | ??# #?????????????????### ###??? | | ??# #???????????????????# #????? | | ?## #???????????????????# #????? | | "## ###?????????????????# #????? | | " # # #?????????????????# #????? | | " #### #????????? ????? | | " ??? ????? | | ^^ = #????????? #???? | | % #### %!#????????? #???? | | # # ???? ##?????????# ##???? | | ?????#??????????? #????? | +----------------------------------------------------+ Best States ------------- Heat Dissipation 35 Energy Generation 10 Energy Capacity 250 Matter Stores 300 Matter Capacity 300 Sight Range 16 Terrain Scan Range 14 Terrain Scan Density 85 Evasion (%) 53 Item Schematics ----------------- None Robot Schematics ------------------ None Fabricated ------------ Nothing Alien Tech Used ----------------- None Achievements -------------- First Step to Greatness One Hack Too Far Shopping List Challenges ------------ None Game ------ Seed ShockExplosiveLeg Manual? 0 Play Time 00:42:37 Cumulative 1.4 hours Start 2019.12.16 @ 15:47:34 End 2019.12.16 @ 16:36:03 Sessions 1 Manual Loads 0 Difficulty Rogue Special Mode None Game No. 1 Rogue 1 Adventurer 0 Explorer 0 Win Type - Total 0 Types 0/0/0/0/0/0/0 Lore% 0 Gallery% 1 Achievement% 1 Wizard Run 0 Options --------- ASCII 0 Keyboard 1 Movement Numpad Keybinds 0 Fullscreen 2 Font 18/SmallcapsGlow Map View 76x50 Tactical HUD 1 Map Filters NONE Filters NONE Steam 1 RUN: b7b78862-a3a8-4a60-ad1c-0da8c6962c23